bitfinex/quotes_BTCUSD_20250115
["timestamp","ask_amount","ask_price","bid_price","bid_amount"]
[1736954774713,0.12722692,99391.0,99372.0,1.701263]
[1736954774955,0.201209,99400.0,99373.0,0.00100621]
[1736954775151,0.10422692,99399.0,99373.0,0.00100621]
[1736954775674,0.023,99398.0,99380.0,0.201246]
[1736954775925,0.12722692,99398.0,99380.0,0.201246]
[1736954776205,0.10422692,99398.0,99375.0,0.00100613]
[1736954776358,0.023,99397.0,99376.0,0.00100613]
[1736954776570,0.224213,99397.0,99376.0,0.20226113]
[1736954777029,0.023,99397.0,99376.0,0.20226113]
[1736954777244,0.023,99397.0,99380.0,0.201246]
[1736954777451,0.023,99395.0,99376.0,0.20226113]
[1736954777871,0.023,99397.0,99376.0,0.00100613]
[1736954778045,0.023,99397.0,99377.0,0.00100613]
[1736954778253,0.023,99397.0,99378.0,0.201251]
[1736954778459,0.023,99397.0,99379.0,0.00100613]
[1736954779000,0.023,99397.0,99380.0,0.201247]
[1736954779205,0.023,99397.0,99379.0,0.00100613]
[1736954779407,0.005,99420.0,99382.0,0.15]
[1736954779588,0.00100262,99419.0,99383.0,0.92268778]
[1736954779790,0.01669543,99420.0,99384.0,0.418782]
[1736954780007,0.01669543,99420.0,99400.0,0.201207]
[1736954780421,0.01669543,99420.0,99404.0,0.201197]
[1736954780625,0.01669543,99420.0,99391.0,0.201224]
[1736954780784,0.01669543,99420.0,99401.0,0.201205]
[1736954781400,0.01669543,99420.0,99400.0,0.002]
[1736954781401,0.01669543,99420.0,99406.0,0.201195]
[1736954781616,0.005,99420.0,99406.0,0.201195]
[1736954781818,0.005,99420.0,99406.0,2.03472776]
[1736954782054,0.005,99420.0,99406.0,2.25930592]
[1736954782394,0.005,99420.0,99406.0,2.21249892]
[1736954783206,0.005,99420.0,99406.0,2.03372192]
[1736954783436,0.005,99420.0,99406.0,3.48431392]
[1736954783648,0.005,99420.0,99406.0,3.12391692]
[1736954783896,0.005,99420.0,99406.0,3.22391692]
[1736954784106,5.2e-07,99407.0,99406.0,3.37381692]
[1736954784318,0.005,99420.0,99406.0,3.37381692]
[1736954784319,0.005,99420.0,99419.0,0.351168]
[1736954784535,5e-07,99421.0,99420.0,0.2325205]
[1736954784749,5e-07,99421.0,99420.0,0.33674742]
[1736954784964,5e-07,99421.0,99420.0,1.93674742]
[1736954785202,0.0008548,99476.0,99420.0,1.93674742]
[1736954785203,0.0008548,99476.0,99463.0,0.201078]
[1736954785407,0.0008548,99476.0,99443.0,1.01603701]
[1736954785610,0.0008548,99476.0,99459.0,0.201086]
[1736954785841,0.0008548,99476.0,99461.0,0.201083]
[1736954786062,0.0008548,99476.0,99462.0,1.5]
[1736954786493,0.00100469,99476.0,99462.0,1.5]
[1736954786667,0.00200731,99476.0,99462.0,1.5]
[1736954786814,0.00100469,99476.0,99462.0,1.5]
[1736954787217,0.02500731,99476.0,99462.0,1.5]
[1736954788511,0.02400469,99476.0,99463.0,0.201079]
[1736954788944,0.00100469,99476.0,99472.0,0.20106]
[1736954789164,0.00100469,99476.0,99473.0,0.00100517]
[1736954789370,0.00100469,99476.0,99474.0,0.2020621]
[1736954791508,0.00100469,99476.0,99474.0,1.32632603]
[1736954791764,0.00100469,99476.0,99475.0,0.10422692]
[1736954792007,0.00100469,99476.0,99475.0,1.60523194]
[1736954792246,0.00200469,99476.0,99475.0,2.01332592]
[1736954792487,0.00100469,99476.0,99475.0,1.81363892]
[1736954792721,0.01765959,99479.0,99475.0,1.60422692]
[1736954792942,0.01765959,99479.0,99476.0,0.40311105]
[1736954793116,0.01765959,99479.0,99478.0,0.201049]
[1736954793324,0.01765959,99479.0,99478.0,1.80628098]
[1736954793533,0.01765959,99479.0,99478.0,1.701049]
[1736954793939,0.01765959,99479.0,99478.0,0.201049]
[1736954794174,0.01765959,99479.0,99478.0,0.20205407]
[1736954794784,0.01765959,99479.0,99478.0,0.20605407]
[1736954795150,0.01765959,99479.0,99476.0,0.19516164]
[1736954795343,0.001,99479.0,99478.0,0.009]
[1736954795550,0.00179718,99480.0,99478.0,0.00050497]
[1736954795755,0.00179718,99480.0,99479.0,0.00050497]
[1736954795966,0.00179718,99480.0,99460.0,1.01603701]
[1736954796210,0.00179718,99480.0,99464.0,0.15]
[1736954796412,0.001,99479.0,99478.0,0.013]
[1736954796839,0.001,99479.0,99478.0,0.009]
[1736954797496,0.024,99479.0,99478.0,0.009]
[1736954797893,0.023,99479.0,99478.0,0.002]
[1736954798976,0.024,99479.0,99478.0,0.009]
[1736954802080,0.024,99479.0,99478.0,1.509]
[1736954802276,0.024,99479.0,99478.0,1.710049]
[1736954803265,0.024,99479.0,99478.0,0.201049]
[1736954803707,0.024,99479.0,99475.0,0.00050508]
[1736954803912,0.024,99479.0,99473.0,0.00050522]
[1736954804196,0.024,99479.0,99475.0,0.201055]
[1736954804399,0.024,99479.0,99478.0,1.5]
[1736954804841,0.023,99479.0,99478.0,1.5]
[1736954805223,0.024,99479.0,99478.0,1.5]
[1736954805438,0.00179718,99480.0,99479.0,0.351047]
[1736954805656,0.00179718,99480.0,99479.0,0.84339392]
[1736954806061,0.00179718,99480.0,99479.0,0.77204892]
[1736954806273,0.00179718,99480.0,99479.0,2.16965992]
[1736954806472,0.00179718,99480.0,99479.0,2.12706692]
[1736954806812,0.01079718,99480.0,99479.0,2.12706692]
[1736954807891,0.00079718,99480.0,99479.0,2.14178989]
[1736954808107,0.00179403,99494.0,99492.0,0.201021]
[1736954808108,0.023,99493.0,99492.0,0.201021]
[1736954808463,0.023,99493.0,99492.0,0.20152575]
[1736954808662,0.023,99493.0,99492.0,1.701021]
[1736954808866,0.00179403,99494.0,99493.0,0.15]
[1736954809076,0.00179403,99494.0,99493.0,1.27076835]
[1736954809265,0.00179403,99494.0,99493.0,1.27026393]
[1736954809705,0.00179403,99494.0,99493.0,1.62054793]
[1736954809920,0.00179403,99494.0,99493.0,1.63512208]
[1736954810133,0.00179403,99494.0,99493.0,1.66234851]
[1736954810347,0.00179403,99494.0,99493.0,1.66634851]
[1736954810766,0.00179403,99494.0,99493.0,1.66234851]
[1736954811166,0.01079403,99494.0,99493.0,1.76334851]
[1736954811948,0.01079403,99494.0,99493.0,3.26334851]
[1736954812353,0.01079403,99494.0,99493.0,3.27234851]
[1736954812696,0.01079403,99494.0,99493.0,3.26334851]
[1736954812953,0.01079403,99494.0,99493.0,3.26434851]
[1736954813161,0.01279403,99494.0,99493.0,3.26434851]
[1736954813347,0.01279403,99494.0,99493.0,3.28416369]
[1736954813766,1e-08,99500.0,99499.0,0.1]
[1736954813973,1.1e-07,99503.0,99502.0,0.3275]
[1736954814200,0.01050735,99518.0,99513.0,0.200978]
[1736954814383,0.01050735,99518.0,99513.0,3.42484093]
[1736954814635,9.3e-07,99514.0,99513.0,4.63755836]
[1736954814845,9.3e-07,99514.0,99513.0,3.31756836]
[1736954815260,9.3e-07,99514.0,99513.0,3.41756836]
[1736954815722,9.3e-07,99514.0,99513.0,3.19034193]
[1736954815927,9.3e-07,99514.0,99513.0,3.29034193]
[1736954816360,9.3e-07,99514.0,99513.0,3.39034193]
[1736954816565,9.3e-07,99514.0,99513.0,3.43954193]
[1736954816785,0.00200093,99514.0,99513.0,3.46676836]
[1736954817180,0.00200093,99514.0,99513.0,5.14800736]
[1736954817331,9.3e-07,99514.0,99513.0,4.73902636]
[1736954817517,9.3e-07,99514.0,99513.0,3.46676836]
[1736954817917,9.3e-07,99514.0,99513.0,3.43954193]
[1736954818535,9.3e-07,99514.0,99513.0,3.45418229]
[1736954818755,9.3e-07,99514.0,99513.0,3.25418229]
[1736954819399,0.00085563,99514.0,99513.0,3.12848229]
[1736954819601,0.00285563,99514.0,99513.0,3.22948229]
[1736954819808,6.3e-07,99514.0,99513.0,3.32948229]
[1736954820005,0.01050684,99542.0,99541.0,0.200922]
[1736954820209,0.01065666,99542.0,99541.0,0.200922]
[1736954820419,0.00014982,99542.0,99541.0,0.20142531]
[1736954820632,0.00014982,99542.0,99541.0,1.9556522]
[1736954820835,0.00014982,99542.0,99541.0,2.50407492]
[1736954822387,0.00014982,99542.0,99541.0,2.50807492]
[1736954822741,0.00014982,99542.0,99541.0,2.50407492]
[1736954823189,0.00014982,99542.0,99541.0,2.51307492]
[1736954823372,0.00014982,99542.0,99541.0,1.95514892]
[1736954823574,0.00014982,99542.0,99541.0,3.25699092]
[1736954823777,0.00014982,99542.0,99541.0,2.12539692]
[1736954823933,0.00014982,99542.0,99541.0,2.10655414]
[1736954824336,0.00014982,99542.0,99541.0,2.10755414]
[1736954824579,0.00014982,99542.0,99541.0,2.10655414]
[1736954824988,0.00014982,99542.0,99541.0,2.11555414]
[1736954825215,0.00014982,99542.0,99541.0,2.13565967]
[1736954826040,0.00014982,99542.0,99541.0,2.13465967]
[1736954826239,0.00014982,99542.0,99541.0,2.12565967]
[1736954826592,0.00014982,99542.0,99541.0,2.12665967]
[1736954826806,0.00114982,99542.0,99541.0,2.12665967]
[1736954827257,0.00114982,99542.0,99541.0,1.93830614]
[1736954827671,0.00114982,99542.0,99541.0,1.93930614]
[1736954828609,0.00114982,99542.0,99541.0,2.46051814]
[1736954830104,0.00114982,99542.0,99541.0,2.66051814]
[1736954830331,0.00114982,99542.0,99541.0,2.56051814]
[1736954830463,0.00114982,99542.0,99541.0,2.55951814]
[1736954830892,0.00014982,99542.0,99541.0,2.65951814]
[1736954831063,8.2e-07,99542.0,99541.0,2.65951814]
[1736954831265,8.2e-07,99542.0,99541.0,2.26880614]
[1736954831880,0.05288885,99571.0,99570.0,1.32112693]
[1736954832759,0.05288885,99571.0,99570.0,1.21690001]
[1736954832927,0.02988885,99571.0,99564.0,0.200874]
[1736954833129,0.02988885,99571.0,99569.0,0.200865]
[1736954833543,0.02988885,99571.0,99570.0,1.5]
[1736954834484,0.02979864,99571.0,99570.0,1.5]
[1736954834905,0.02979864,99571.0,99570.0,1.504]
[1736954835080,0.02979864,99571.0,99570.0,1.506]
[1736954836488,0.02979864,99571.0,99570.0,1.5]
[1736954836684,0.02979864,99571.0,99570.0,1.60422692]
[1736954836893,0.02979864,99571.0,99570.0,1.511]
[1736954837129,0.02979864,99571.0,99570.0,1.503]
[1736954837334,0.02979864,99571.0,99570.0,1.5]
[1736954837582,0.02979864,99571.0,99570.0,1.502]
[1736954838160,0.04029947,99571.0,99570.0,1.505]
[1736954838436,0.04029947,99571.0,99570.0,1.508]
[1736954838636,0.02979864,99571.0,99570.0,1.508]
[1736954839644,0.05279864,99571.0,99570.0,1.508]
[1736954839842,0.17459864,99571.0,99570.0,1.508]
[1736954840015,0.05279864,99571.0,99570.0,0.008]
[1736954840207,0.02979864,99571.0,99570.0,0.005]
[1736954840415,0.02979864,99571.0,99570.0,0.002]
[1736954841021,0.02979864,99571.0,99570.0,0.00250282]
[1736954841226,0.02979864,99571.0,99570.0,1.01653983]
[1736954841427,0.02979864,99571.0,99570.0,1.01703701]
[1736954841595,0.02979864,99571.0,99570.0,1.01603701]
[1736954841810,0.02979864,99571.0,99570.0,2.77026393]
[1736954841962,0.02979864,99571.0,99570.0,3.0970623]
[1736954842162,0.02979864,99571.0,99570.0,3.1782623]
[1736954842375,0.02979864,99571.0,99570.0,3.1702623]
[1736954842951,0.0008556,99576.0,99575.0,0.350853]
[1736954843157,0.00100531,99576.0,99575.0,1.38684892]
[1736954843356,0.00100531,99576.0,99575.0,1.17235692]
[1736954843554,0.00100531,99576.0,99575.0,2.65966592]
[1736954843759,0.00100531,99576.0,99575.0,2.30763992]
[1736954844196,0.00100531,99576.0,99575.0,2.09647992]
[1736954844386,0.00100531,99576.0,99575.0,2.001253]
[1736954844632,0.00100531,99576.0,99575.0,2.11147992]
[1736954845219,0.00100531,99576.0,99575.0,2.09647992]
[1736954845426,0.00100531,99576.0,99575.0,2.10747992]
[1736954845792,0.00100531,99576.0,99575.0,2.46685592]
[1736954846205,0.00100531,99576.0,99575.0,2.37897592]
[1736954846807,0.00100531,99576.0,99575.0,2.37097592]
[1736954847006,0.00100531,99576.0,99575.0,2.37997592]
[1736954847211,0.00100531,99576.0,99575.0,2.37697592]
[1736954847534,0.00100531,99576.0,99575.0,2.37297592]
[1736954847897,0.00100531,99576.0,99575.0,2.47297592]
[1736954848099,0.00100531,99576.0,99575.0,2.54917592]
[1736954848303,0.00100531,99576.0,99575.0,2.56450025]
[1736954848591,0.00100531,99576.0,99575.0,2.46450025]
[1736954849013,3.1e-07,99576.0,99575.0,2.56350025]
[1736954849225,3.1e-07,99576.0,99575.0,2.29200425]
[1736954849423,3.1e-07,99576.0,99575.0,2.31250629]
[1736954849886,3.1e-07,99576.0,99575.0,2.31150629]
[1736954850100,0.0008547,99580.0,99579.0,0.450845]
[1736954850101,1e-08,99580.0,99579.0,0.450845]
[1736954850305,1e-08,99580.0,99579.0,0.55507192]
[1736954850723,1e-08,99580.0,99579.0,2.05507192]
[1736954851735,1e-08,99580.0,99579.0,1.95707192]
[1736954852144,1e-08,99580.0,99579.0,2.05607192]
[1736954853106,1e-08,99580.0,99579.0,2.05507192]
[1736954853305,1e-08,99580.0,99579.0,2.05607192]
[1736954853507,1e-08,99580.0,99579.0,2.05707192]
[1736954853819,1e-08,99580.0,99579.0,2.05607192]
[1736954854229,1e-08,99580.0,99579.0,1.95707192]
[1736954859031,1e-08,99580.0,99579.0,2.05707192]
[1736954859241,1e-08,99580.0,99579.0,1.95707192]
[1736954859436,1e-08,99580.0,99579.0,1.97684391]
[1736954859643,1e-08,99580.0,99579.0,2.07684391]
[1736954860598,1e-08,99580.0,99579.0,2.10534181]
[1736954862278,1e-08,99580.0,99579.0,2.07684391]
[1736954862478,1e-08,99580.0,99579.0,2.00536896]
[1736954862741,1e-08,99580.0,99579.0,1.97684391]
[1736954863289,1e-08,99580.0,99579.0,2.00537604]
[1736954863750,1e-08,99580.0,99579.0,1.97684391]
[1736954863951,0.01049788,99580.0,99579.0,1.97684391]
[1736954864165,0.01049788,99580.0,99579.0,7.02680391]
[1736954864381,0.02738723,99605.0,99604.0,0.15]
[1736954864605,7e-07,99614.0,99606.0,0.25]
[1736954864855,7e-07,99614.0,99604.0,3.99084793]
[1736954864856,7e-05,99670.0,99633.0,0.0464]
[1736954865072,7e-05,99670.0,99649.0,1.850704]
[1736954865279,0.00053924,99650.0,99649.0,4.18368893]
[1736954865479,2.4e-07,99650.0,99649.0,4.31941783]
[1736954865690,7e-05,99670.0,99669.0,0.350664]
[1736954865892,0.00021973,99670.0,99669.0,1.74077683]
[1736954866098,0.00021973,99670.0,99669.0,1.84077683]
[1736954866304,0.00021973,99670.0,99669.0,4.41865693]
[1736954866513,0.00021973,99670.0,99669.0,4.54101394]
[1736954866720,0.00021973,99670.0,99669.0,3.88882694]
[1736954866925,7.3e-07,99670.0,99669.0,3.8734768]
[1736954867131,7.3e-07,99670.0,99669.0,3.36215979]
[1736954867334,0.000854,99676.0,99669.0,3.36215979]
[1736954867335,7.3e-07,99676.0,99675.0,0.550652]
[1736954867481,7.3e-07,99676.0,99675.0,0.65487892]
[1736954867689,7.3e-07,99676.0,99675.0,0.450652]
[1736954867893,7.3e-07,99680.0,99679.0,0.35]
[1736954868098,7.3e-07,99680.0,99679.0,3.05170051]
[1736954868305,0.85823042,99731.0,99727.0,0.200547]
[1736954868568,0.8451,99740.0,99727.0,0.200547]
[1736954868694,0.8451,99740.0,99729.0,0.200543]
[1736954868695,0.00014962,99731.0,99729.0,0.200543]
[1736954868913,0.00014962,99731.0,99730.0,0.10422692]
[1736954869115,0.00014962,99731.0,99730.0,1.60422692]
[1736954869360,0.00014962,99731.0,99730.0,1.75422692]
[1736954869842,0.00014962,99731.0,99730.0,1.85422692]
[1736954870141,0.00014962,99731.0,99730.0,3.16931202]
[1736954870347,0.00014962,99731.0,99730.0,2.77245492]
[1736954870545,0.00014962,99731.0,99730.0,2.00440492]
[1736954870773,0.00014962,99731.0,99730.0,1.96679992]
[1736954871168,0.00014962,99731.0,99730.0,1.853573]
[1736954871380,0.00014962,99731.0,99730.0,2.05879992]
[1736954871619,0.00014962,99731.0,99730.0,1.85522692]
[1736954871921,8.7e-07,99731.0,99730.0,4.26803892]
[1736954872045,8.7e-07,99731.0,99730.0,2.05556472]
[1736954872257,8.7e-07,99731.0,99730.0,1.95556472]
[1736954873237,8.7e-07,99731.0,99730.0,1.95656472]
[1736954873438,8.7e-07,99731.0,99730.0,1.95556472]
[1736954873643,8.7e-07,99731.0,99730.0,1.95656472]
[1736954874001,8.7e-07,99731.0,99730.0,1.95456472]
[1736954874207,8.7e-07,99731.0,99730.0,1.95556472]
[1736954874404,8.7e-07,99731.0,99730.0,1.95656472]
[1736954874607,0.69974087,99740.0,99739.0,0.550523]
[1736954874807,0.01048422,99742.0,99741.0,0.35]
[1736954874965,0.01306209,99793.0,99749.0,0.450503]
[1736954875170,0.01047966,99778.0,99749.0,6.11890193]
[1736954875370,0.01047966,99778.0,99749.0,5.83838293]
[1736954875658,0.01047966,99778.0,99749.0,5.13118093]
[1736954875810,0.01047966,99778.0,99749.0,4.36026293]
[1736954876382,0.01047966,99778.0,99749.0,3.65582401]
[1736954876607,0.01047966,99778.0,99749.0,3.17342801]
[1736954876782,0.01047966,99778.0,99749.0,3.17442801]
[1736954877177,0.01047966,99778.0,99749.0,3.17342801]
[1736954877382,0.01047966,99778.0,99749.0,3.17442801]
[1736954877727,0.01047966,99778.0,99749.0,3.17342801]
[1736954878302,0.01047966,99778.0,99749.0,3.17442801]
[1736954878585,0.01047966,99778.0,99749.0,3.17342801]
[1736954878822,0.01047966,99778.0,99749.0,3.17442801]
[1736954879207,0.01047966,99778.0,99749.0,3.17542801]
[1736954879353,0.01047966,99778.0,99749.0,3.17442801]
[1736954879556,0.01047966,99778.0,99749.0,3.27542801]
[1736954880266,0.01047966,99778.0,99749.0,3.27442801]
[1736954880425,0.01047966,99778.0,99749.0,3.17342801]
[1736954880627,0.0803,99768.0,99749.0,1.60522692]
[1736954880803,0.2286,99750.0,99749.0,1.502]
[1736954880998,0.2286,99750.0,99749.0,0.001]
[1736954881197,0.181,99750.0,99749.0,0.10522692]
[1736954881467,0.181,99750.0,99749.0,0.10622692]
[1736954881616,0.181,99750.0,99749.0,1.60622692]
[1736954881820,0.181,99750.0,99749.0,1.60522692]
[1736954882356,0.204,99750.0,99749.0,1.5]
[1736954882563,0.19,99750.0,99749.0,1.501]
[1736954882777,0.181,99750.0,99749.0,1.60422692]
[1736954883163,0.1828542,99750.0,99749.0,1.61322692]
[1736954883404,0.1818542,99750.0,99749.0,1.75422692]
[1736954883711,0.1780542,99750.0,99749.0,1.88643492]
[1736954883921,0.1770542,99750.0,99749.0,1.87743492]
[1736954884149,0.1770542,99750.0,99749.0,1.87243492]
[1736954884569,0.1860542,99750.0,99749.0,1.88599129]
[1736954884974,0.1770542,99750.0,99749.0,1.88499129]
[1736954885373,0.1860542,99750.0,99749.0,1.88599129]
[1736954885659,0.1870542,99750.0,99749.0,1.73306492]
[1736954886035,0.1860542,99750.0,99749.0,1.72406492]
[1736954886260,0.1950542,99750.0,99749.0,1.72506492]
[1736954886471,0.1860542,99750.0,99749.0,1.72406492]
[1736954886708,0.1770542,99750.0,99749.0,1.60422692]
[1736954886903,0.1770542,99750.0,99749.0,1.60522692]
[1736954886904,0.1860542,99750.0,99749.0,1.60522692]
[1736954887079,0.1950542,99750.0,99749.0,1.60622692]
[1736954887310,0.1860542,99750.0,99749.0,1.60522692]
[1736954887741,0.1860542,99750.0,99749.0,1.75522692]
[1736954888148,0.1860542,99750.0,99749.0,1.65]
[1736954888360,0.1770542,99750.0,99749.0,1.65]
[1736954888579,0.2090542,99750.0,99749.0,1.501]
[1736954888770,0.1950542,99750.0,99749.0,1.502]
[1736954889008,0.1860542,99750.0,99749.0,1.60522692]
[1736954889215,0.1860542,99750.0,99749.0,1.501]
[1736954889419,0.2180542,99750.0,99749.0,1.502]
[1736954889893,0.2090542,99750.0,99749.0,1.501]
[1736954890133,0.1950542,99750.0,99749.0,1.60622692]
[1736954890344,0.1860542,99750.0,99749.0,1.60522692]
[1736954890536,0.1860542,99750.0,99749.0,1.501]
[1736954890916,0.2140542,99750.0,99749.0,0.001]
[1736954891081,0.2618542,99750.0,99749.0,0.001]
[1736954891291,0.1,99743.0,99709.0,0.200581]
[1736954891509,0.023,99732.0,99729.0,1.5]
[1736954891719,0.10422692,99731.0,99729.0,1.5]
[1736954891916,0.1,99735.0,99729.0,1.5]
[1736954892317,0.00724,99741.0,99729.0,1.5]
[1736954892577,0.37888416,99740.0,99729.0,1.5]
[1736954892790,0.1,99731.0,99729.0,1.5]
[1736954892982,0.200541,99730.0,99729.0,1.5]
[1736954893506,0.63206792,99730.0,99729.0,1.5]
[1736954893727,0.65506792,99730.0,99729.0,1.45]
[1736954894128,0.608081,99730.0,99729.0,1.453]
[1736954894391,0.608081,99730.0,99729.0,0.003]
[1736954894597,0.200569,99717.0,99695.0,0.00100291]
[1736954894804,0.1,99721.0,99695.0,0.00100291]
[1736954894805,0.0776,99745.0,99716.0,1.5]
[1736954895012,0.1770542,99750.0,99734.0,0.15]
[1736954895282,0.0070542,99750.0,99735.0,0.10522939]
[1736954895526,0.0070542,99750.0,99749.0,1.5]
[1736954895852,0.00755264,99750.0,99749.0,1.5]
[1736954896063,0.00755264,99750.0,99749.0,1.49998752]
[1736954896738,0.20805364,99750.0,99749.0,1.49998752]
[1736954896868,0.23105364,99750.0,99749.0,1.49998752]
[1736954897070,0.23205364,99750.0,99749.0,1.50098752]
[1736954897262,0.03155264,99750.0,99749.0,1.50598752]
[1736954897714,0.03155264,99750.0,99749.0,1.50098752]
[1736954898103,0.03155264,99750.0,99749.0,1.50398752]
[1736954898308,0.00755264,99750.0,99749.0,1.50298752]
[1736954898487,0.00755264,99750.0,99749.0,1.60721444]
[1736954898686,0.00755264,99750.0,99749.0,1.50298752]
[1736954899594,0.00755264,99750.0,99749.0,1.49998752]
[1736954899766,0.00755264,99750.0,99749.0,1.50298752]
[1736954900125,0.00755264,99750.0,99749.0,1.60421444]
[1736954900512,0.00855264,99750.0,99749.0,1.61421444]
[1736954900919,0.00855264,99750.0,99749.0,1.61021444]
[1736954901347,0.00855264,99750.0,99749.0,1.61521444]
[1736954901778,0.00855264,99750.0,99749.0,1.76521444]
[1736954902220,0.00755264,99750.0,99749.0,1.75921444]
[1736954903097,0.00755264,99750.0,99749.0,2.45939344]
[1736954903098,0.00855264,99750.0,99749.0,2.45939344]
[1736954903268,0.00855264,99750.0,99749.0,1.76821444]
[1736954903475,0.00755264,99750.0,99749.0,1.75921444]
[1736954903839,0.00855264,99750.0,99749.0,1.76821444]
[1736954904049,0.00755264,99750.0,99749.0,1.75421444]
[1736954904454,0.00755264,99750.0,99749.0,1.75821444]
[1736954904852,0.00755264,99750.0,99749.0,1.98981444]
[1736954904991,0.00755264,99750.0,99749.0,1.93287044]
[1736954905192,0.01655264,99750.0,99749.0,1.90392044]
[1736954905393,0.02555264,99750.0,99749.0,1.90492044]
[1736954905963,0.02555264,99750.0,99749.0,1.75621444]
[1736954907098,0.02555264,99750.0,99749.0,1.75800679]
[1736954907502,0.02555264,99750.0,99749.0,2.66573779]
[1736954907743,0.02555264,99750.0,99749.0,2.76573779]
[1736954908354,6.4e-07,99750.0,99749.0,2.76573779]
[1736954908559,6.4e-07,99750.0,99749.0,1.95800679]
[1736954909303,6.4e-07,99750.0,99749.0,1.96807586]
[1736954910207,6.4e-07,99750.0,99749.0,1.86807586]
[1736954910661,0.01188996,99789.0,99750.0,1.873143]
[1736954910861,0.01557483,99794.0,99756.0,0.10422692]
[1736954911059,0.01557483,99794.0,99768.0,0.15]
[1736954911060,0.1273,99792.0,99768.0,0.15]
[1736954911281,0.327716,99792.0,99769.0,0.20146521]
[1736954911607,0.1273,99792.0,99769.0,0.00100221]
[1736954911814,0.1273,99792.0,99775.0,0.200449]
[1736954912038,0.1273,99792.0,99777.0,0.200446]
[1736954912246,0.1273,99792.0,99778.0,0.105229]
[1736954912861,0.1273,99792.0,99779.0,0.200442]
[1736954913088,0.13777855,99792.0,99780.0,0.00100208]
[1736954913707,0.13777855,99792.0,99780.0,0.20144208]
[1736954914115,0.13777855,99792.0,99780.0,0.00100208]
[1736954914355,0.13777855,99792.0,99779.0,0.004]
[1736954914777,0.200418,99791.0,99780.0,0.003]
[1736954914985,0.17390294,99790.0,99780.0,0.003]
[1736954915183,0.20042,99790.0,99780.0,0.003]
[1736954915394,0.13777855,99792.0,99773.0,0.200454]
[1736954915597,0.13777855,99792.0,99779.0,0.003]
[1736954915767,0.13768845,99792.0,99779.0,0.003]
[1736954915975,0.13768845,99792.0,99779.0,0.00272789]
[1736954916274,0.200418,99791.0,99780.0,0.003]
[1736954916598,0.200418,99791.0,99779.0,0.00272789]
[1736954916797,0.13768845,99792.0,99779.0,0.00272789]
[1736954917007,0.13768845,99792.0,99779.0,0.003]
[1736954917236,0.13768845,99792.0,99780.0,0.002]
[1736954917675,0.13768845,99792.0,99780.0,0.005]
[1736954917890,0.13768845,99792.0,99771.0,0.00100217]
[1736954918086,0.13768845,99792.0,99779.0,0.002]
[1736954918302,0.13768845,99792.0,99779.0,0.005]
[1736954918416,0.13768845,99792.0,99779.0,0.003]
[1736954918644,0.200418,99791.0,99779.0,0.003]
[1736954918856,0.13768845,99792.0,99780.0,0.002]
[1736954919103,0.023,99791.0,99780.0,0.002]
[1736954919427,0.200432,99785.0,99780.0,0.002]
[1736954919627,0.400869,99783.0,99780.0,0.002]
[1736954919850,0.200438,99781.0,99780.0,0.005]
[1736954920006,0.200438,99781.0,99770.0,1.5]
[1736954920220,0.200432,99784.0,99778.0,0.00179172]
[1736954920470,0.023,99785.0,99780.0,0.003]
[1736954920649,0.023,99783.0,99779.0,0.002]
[1736954920852,0.200432,99784.0,99778.0,0.00179172]
[1736954921053,0.200427,99787.0,99780.0,0.006]
[1736954921234,0.33895865,99792.0,99778.0,0.00179172]
[1736954921422,0.023,99791.0,99778.0,0.00179172]
[1736954921622,0.20042,99790.0,99778.0,0.00179172]
[1736954921862,0.023,99791.0,99779.0,0.004]
[1736954922200,0.200432,99785.0,99779.0,0.004]
[1736954922410,0.200422,99789.0,99779.0,0.004]
[1736954922628,0.13854165,99792.0,99779.0,0.004]
[1736954922831,0.1280631,99792.0,99779.0,0.004]
[1736954923031,0.0237543,99791.0,99779.0,0.004]
[1736954923239,0.200431,99785.0,99778.0,0.00779172]
[1736954923441,0.023,99789.0,99778.0,0.00779172]
[1736954923668,0.1,99783.0,99778.0,0.00379172]
[1736954923865,0.200497,99752.0,99749.0,0.00179235]
[1736954924073,0.223501,99750.0,99749.0,0.00179235]
[1736954924511,0.023,99750.0,99749.0,0.00179235]
[1736954924712,0.03548871,99750.0,99749.0,0.00179235]
[1736954924913,0.23971563,99750.0,99749.0,0.00179235]
[1736954925116,0.01173441,99750.0,99749.0,0.00579235]
[1736954925320,0.1,102310.0,99749.0,0.00579235]
[1736954925575,0.00090374,99762.0,99749.0,0.00579235]
[1736954925789,0.200479,99761.0,99749.0,0.00579235]
[1736954926048,0.200483,99759.0,99749.0,0.00579235]
[1736954926287,0.0007543,99759.0,99749.0,0.00179235]
[1736954926548,0.00014944,99762.0,99749.0,0.00179235]
[1736954926813,0.00014944,99762.0,99750.0,0.10522929]
[1736954927061,0.00014944,99762.0,99756.0,0.200487]
[1736954927468,0.00014944,99762.0,99756.0,0.00100232]
[1736954927675,0.00014944,99762.0,99760.0,0.200479]
[1736954927879,0.00014944,99762.0,99761.0,0.00100227]
[1736954928103,0.00014944,99762.0,99759.0,0.00100227]
[1736954928310,0.00014944,99762.0,99756.0,0.004]
[1736954928519,0.00014944,99762.0,99759.0,0.200482]
[1736954928722,0.00014944,99762.0,99760.0,1.50100227]
[1736954928924,0.00014944,99762.0,99761.0,0.200479]
[1736954929558,0.00014944,99762.0,99761.0,1.700479]
[1736954930394,0.00014944,99762.0,99761.0,1.5]
[1736954930989,0.00014944,99762.0,99761.0,1.509]
[1736954931194,0.00014944,99762.0,99761.0,1.513]
[1736954931396,0.00014944,99762.0,99761.0,1.504]
[1736954931601,0.00014944,99762.0,99761.0,1.513]
[1736954932313,0.00014944,99762.0,99761.0,1.61722692]
[1736954932563,0.00014944,99762.0,99761.0,2.78326393]
[1736954932964,0.00014944,99762.0,99761.0,2.77926393]
[1736954933614,0.00014944,99762.0,99761.0,2.77526393]
[1736954933813,0.0008533,99778.0,99761.0,2.77626393]
[1736954934039,0.07185594,99792.0,99772.0,0.200456]
[1736954934244,0.00014942,99792.0,99781.0,0.02814406]
[1736954934449,0.00014942,99792.0,99772.0,1.01603701]
[1736954934660,0.00014942,99792.0,99779.0,0.200442]
[1736954934864,0.00014942,99792.0,99774.0,0.0010021]
[1736954935040,0.00014942,99792.0,99779.0,0.200441]
[1736954936361,0.00014942,99792.0,99788.0,0.200424]
[1736954936993,0.00014942,99792.0,99785.0,0.20043]
[1736954937199,0.00014942,99792.0,99786.0,0.00100203]